[Event "Championnat d'Europe Rapide"]
[Date "2024.12.08"]
[White "Quparadze, Giga"]
[Black "Beerdsen, Thomas"]
[WhiteElo "2537"]
[BlackElo "2502"]
[Round "9.6"]
[Result "1-0"]
[TimeControl "900+10"]

1. e4 {[%clk 00:15:18]} e5 {[%emt 00:00:03] [%clk 00:15:19]} 2. Nf3 {[%clk
00:15:27]} Nc6 {[%emt 00:00:01] [%clk 00:15:28]} 3. Bb5 {[%emt 00:00:01] [%clk
00:15:36]} f5 {[%clk 00:15:37]} 4. d3 {[%emt 00:00:02] [%clk 00:15:44]} fxe4
{[%emt 00:00:02] [%clk 00:15:44]} 5. dxe4 {[%emt 00:00:02] [%clk 00:15:52]} Nf6
{[%clk 00:15:53]} 6. O-O {[%emt 00:00:03] [%clk 00:16:00]} d6 {[%emt 00:00:02]
[%clk 00:16:01]} 7. Bc4 {[%emt 00:00:05] [%clk 00:16:05]} Bg4 {[%emt 00:00:02]
[%clk 00:16:08]} 8. h3 {[%emt 00:00:06] [%clk 00:16:10]} Bh5 {[%emt 00:00:01]
[%clk 00:16:17]} 9. Qd3 {[%emt 00:00:02] [%clk 00:16:18]} Qc8 {[%emt 00:00:52]
[%clk 00:15:35]} 10. Ng5 {[%emt 00:00:18] [%clk 00:16:10]} Nd8 {[%emt 00:00:14]
[%clk 00:15:31]} 11. f4 {[%emt 00:00:06] [%clk 00:16:14]} exf4 {[%emt 00:00:59]
[%clk 00:14:42]} 12. Bxf4 {[%emt 00:00:03] [%clk 00:16:22]} h6 {[%emt 00:00:07]
[%clk 00:14:44]} 13. e5 {[%emt 00:00:37] [%clk 00:15:55]} hxg5 {[%emt 00:01:58]
[%clk 00:12:56]} 14. exf6 {[%emt 00:00:04] [%clk 00:16:01]} gxf6 {[%emt
00:00:15] [%clk 00:12:51]} 15. Re1+ {[%emt 00:00:53] [%clk 00:15:18]} Be7 {[%emt
00:00:04] [%clk 00:12:58]} 16. Nc3 {[%emt 00:00:01] [%clk 00:15:26]} Nf7 {[%emt
00:01:10] [%clk 00:11:58]} 17. Be6 {[%emt 00:00:13] [%clk 00:15:23]} Qd8 {[%emt
00:00:02] [%clk 00:12:06]} 18. Bg3 {[%emt 00:00:12] [%clk 00:15:21]} c6 {[%emt
00:00:29] [%clk 00:11:47]} 19. Re3 {[%emt 00:00:26] [%clk 00:15:04]} Ne5 {[%emt
00:00:17] [%clk 00:11:41]} 20. Qd2 {[%emt 00:00:25] [%clk 00:14:49]} Bf7 {[%emt
00:01:00] [%clk 00:10:51]} 21. Bxf7+ {[%emt 00:00:02] [%clk 00:14:56]} Kxf7
{[%emt 00:00:09] [%clk 00:10:52]} 22. Qe2 {[%emt 00:00:02] [%clk 00:15:05]} Qb6
{[%emt 00:00:24] [%clk 00:10:38]} 23. Rf1 {[%emt 00:00:08] [%clk 00:15:07]} Raf8
{[%emt 00:00:33] [%clk 00:10:14]} 24. Ne4 {[%emt 00:00:04] [%clk 00:15:14]} Ke8
{[%emt 00:00:11] [%clk 00:10:13]} 25. Bf2 {[%emt 00:00:05] [%clk 00:15:19]} Qc7
{[%emt 00:00:18] [%clk 00:10:05]} 26. c4 {[%emt 00:00:07] [%clk 00:15:23]} Kd8
{[%emt 00:00:27] [%clk 00:09:48]} 27. Ra3 {[%emt 00:00:30] [%clk 00:15:03]} b6
{[%emt 00:00:14] [%clk 00:09:43]} 28. b4 {[%emt 00:00:02] [%clk 00:15:12]} g4
{[%emt 00:01:00] [%clk 00:08:53]} 29. hxg4 {[%emt 00:00:32] [%clk 00:14:49]} f5
{[%emt 00:00:19] [%clk 00:08:44]} 30. gxf5 {[%emt 00:00:16] [%clk 00:14:44]}
Rxf5 {[%emt 00:00:06] [%clk 00:08:48]} 31. Ng3 {[%emt 00:00:51] [%clk 00:14:02]}
Rf4 {[%emt 00:00:54] [%clk 00:08:04]} 32. Ne4 {[%emt 00:01:36] [%clk 00:12:37]}
Rf5 {[%emt 00:03:49] [%clk 00:04:25]} 33. Rd1 {[%emt 00:00:08] [%clk 00:12:38]}
Rfh5 {[%emt 00:00:11] [%clk 00:04:23]} 34. Ng3 {[%emt 00:00:02] [%clk 00:12:47]}
Rg5 {[%emt 00:00:08] [%clk 00:04:26]} 35. c5 {[%emt 00:00:30] [%clk 00:12:26]}
bxc5 {[%emt 00:00:06] [%clk 00:04:30]} 36. bxc5 {[%emt 00:00:02] [%clk
00:12:34]} d5 {[%emt 00:00:03] [%clk 00:04:37]} 37. Rb1 {[%emt 00:00:09] [%clk
00:12:36]} Nd7 {[%emt 00:01:18] [%clk 00:03:28]} 38. Rab3 {[%emt 00:00:26] [%clk
00:12:20]} Rf8 {[%emt 00:00:29] [%clk 00:03:09]} 39. Rf3 {[%emt 00:00:48] [%clk
00:11:39]} Rxf3 {[%emt 00:00:29] [%clk 00:02:53]} 40. Qxf3 {[%emt 00:00:02]
[%clk 00:11:47]} Bxc5 {[%emt 00:00:15] [%clk 00:02:49]} 41. Rb3 {[%emt 00:02:30]
[%clk 00:09:26]} Qd6 {[%emt 00:00:29] [%clk 00:02:30]} 42. Nf5 {[%emt 00:01:02]
[%clk 00:08:34]} Qe5 {[%emt 00:00:07] [%clk 00:02:33]} 43. Ne3 {[%emt 00:00:09]
[%clk 00:08:35]} Bd6 {[%emt 00:00:30] [%clk 00:02:12]} 44. Nf1 {[%emt 00:00:15]
[%clk 00:08:30]} Rf5 {[%emt 00:00:08] [%clk 00:02:15]} 45. Qg4 {[%emt 00:00:09]
[%clk 00:08:30]} Qf6 {[%emt 00:00:56] [%clk 00:01:30]} 46. Qe2 {[%emt 00:01:05]
[%clk 00:07:35]} Nc5 {[%emt 00:00:22] [%clk 00:01:18]} 47. Rh3 {[%emt 00:00:34]
[%clk 00:07:11]} Qe6 {[%emt 00:00:54] [%clk 00:00:34]} 48. Qc2 {[%emt 00:00:42]
[%clk 00:06:40]} Ne4 {[%emt 00:00:06] [%clk 00:00:38]} 49. Bxa7 {[%emt 00:00:46]
[%clk 00:06:04]} Rxf1+ {[%emt 00:00:10] [%clk 00:00:37]} 50. Kxf1 {[%emt
00:00:02] [%clk 00:06:12]} Qf7+ {[%emt 00:00:01] [%clk 00:00:46]} 51. Bf2 {[%emt
00:00:01] [%clk 00:06:21]} Bg3 {[%emt 00:00:05] [%clk 00:00:52]} 52. Rxg3 {[%emt
00:01:14] [%clk 00:05:17]} Nxg3+ {[%emt 00:00:01] [%clk 00:01:00]} 53. Kg1
{[%emt 00:00:02] [%clk 00:05:24]} Ne4 {[%emt 00:00:02] [%clk 00:01:09]} 54. a4
{[%emt 00:00:46] [%clk 00:04:48]} Qb7 {[%emt 00:00:11] [%clk 00:01:08]} 55. a5
{[%emt 00:00:14] [%clk 00:04:44]} Qb5 {[%emt 00:00:03] [%clk 00:01:15]} 56. Bb6+
{[%emt 00:00:07] [%clk 00:04:48]} Kc8 {[%emt 00:00:25] [%clk 00:01:00]} 57. Qd1
{[%emt 00:00:01] [%clk 00:04:56]} Kb7 {[%emt 00:00:13] [%clk 00:00:57]} 58. Qg4
{[%emt 00:00:09] [%clk 00:04:57]} Qb1+ {[%emt 00:00:07] [%clk 00:01:00]} 59. Kh2
{[%emt 00:00:02] [%clk 00:05:05]} Qd3 {[%emt 00:00:37] [%clk 00:00:33]} 60. Qd7+
{[%emt 00:00:18] [%clk 00:04:56]} Ka6 {[%clk 00:00:43]} 61. Qa7+ {[%emt
00:00:02] [%clk 00:05:05]} Kb5 {[%clk 00:00:52]} 62. Bc7 {[%emt 00:00:01] [%clk
00:05:13]} Nc5 {[%emt 00:00:31] [%clk 00:00:31]} 63. Bd6 {[%emt 00:00:10] [%clk
00:05:13]} Qd4 {[%emt 00:00:28] [%clk 00:00:13]} 64. Qxc5+ {[%emt 00:01:03]
[%clk 00:04:20]} Qxc5 {[%emt 00:00:01] [%clk 00:00:22]} 65. Bxc5 {[%clk
00:04:29]} Kxc5 {[%emt 00:00:01] [%clk 00:00:31]} 66. g4 {[%clk 00:04:39]} d4
{[%emt 00:00:07] [%clk 00:00:33]} 67. Kg3 {[%emt 00:00:08] [%clk 00:04:41]} Kb4
{[%emt 00:00:17] [%clk 00:00:26]} 68. a6 {[%emt 00:00:46] [%clk 00:04:06]} d3
{[%clk 00:00:34]} 69. Kf2 {[%clk 00:04:15]} Kc3 {[%emt 00:00:16] [%clk
00:00:28]} 70. a7 {[%emt 00:00:02] [%clk 00:04:23]} d2 {[%emt 00:00:02] [%clk
00:00:36]} 71. a8=Q {[%emt 00:00:02] [%clk 00:04:31]} d1=Q {[%emt 00:00:03]
[%clk 00:00:44]} 72. Qxc6+ {[%emt 00:00:04] [%clk 00:04:37]} Kb2 {[%emt
00:00:20] [%clk 00:00:33]} 73. Qb5+ {[%emt 00:00:03] [%clk 00:04:43]} Ka3 {[%emt
00:00:08] [%clk 00:00:36]} 74. Qc5+ {[%emt 00:00:12] [%clk 00:04:40]} Ka4 {[%emt
00:00:07] [%clk 00:00:38]} 75. g5 {[%emt 00:00:03] [%clk 00:04:47]} Qg4 {[%emt
00:00:08] [%clk 00:00:41]} 76. Qe5 {[%emt 00:00:04] [%clk 00:04:53]} Kb4 {[%emt
00:00:14] [%clk 00:00:37]} 77. Ke3 {[%emt 00:00:08] [%clk 00:04:54]} Kb3 {[%emt
00:00:10] [%clk 00:00:38]} 78. Qf4 {[%emt 00:00:23] [%clk 00:04:41]} Qg2 {[%emt
00:00:11] [%clk 00:00:38]} 79. Kd4 {[%emt 00:00:09] [%clk 00:04:41]} Kb4 {[%emt
00:00:08] [%clk 00:00:41]} 80. Ke5+ {[%emt 00:00:01] [%clk 00:04:49]} Kb5 {[%emt
00:00:10] [%clk 00:00:41]} 81. Kf5 {[%emt 00:00:07] [%clk 00:04:51]} Qh3 {[%emt
00:00:19] [%clk 00:00:32]} 82. Ke5 {[%emt 00:00:13] [%clk 00:04:50]} Kc6 {[%emt
00:00:11] [%clk 00:00:31]} 83. g6 {[%emt 00:00:16] [%clk 00:04:44]} Qc3+ {[%emt
00:00:03] [%clk 00:00:38]} 84. Ke6 {[%emt 00:00:05] [%clk 00:04:49]} Qb3 {[%emt
00:00:25] [%clk 00:00:23]} 85. Kf6 {[%emt 00:00:04] [%clk 00:04:53]} Qb2 {[%emt
00:00:20] [%clk 00:00:14]} 86. Qe5 {[%emt 00:00:06] [%clk 00:04:56]} Qf2 {[%emt
00:00:03] [%clk 00:00:21]} 87. Kg7 {[%emt 00:00:08] [%clk 00:04:57]} Kd7 {[%emt
00:00:07] [%clk 00:00:26]} 88. Qd5+ {[%emt 00:00:02] [%clk 00:05:05]} Kc8 {[%emt
00:00:06] [%clk 00:00:30]} 89. Qg8+ {[%emt 00:00:01] [%clk 00:05:14]} 1-0

[Site "Europe Echecs"]

[Event "Championnat d'Europe Rapide"]
[Date "2024.12.08"]
[White "Paichadze, Luka"]
[Black "Sarana, Alexey"]
[WhiteElo "2532"]
[BlackElo "2674"]
[Round "9.8"]
[Result "1-0"]
[TimeControl "900+10"]

1. e4 {[%emt 00:00:02] [%clk 00:15:17]} c5 {[%emt 00:00:02] [%clk 00:15:18]} 2.
Nf3 {[%emt 00:00:03] [%clk 00:15:25]} d6 {[%emt 00:00:02] [%clk 00:15:27]} 3. d4
{[%emt 00:00:01] [%clk 00:15:33]} cxd4 {[%emt 00:00:02] [%clk 00:15:36]} 4. Qxd4
{[%emt 00:00:01] [%clk 00:15:42]} Nf6 {[%emt 00:00:02] [%clk 00:15:43]} 5. Bg5
{[%emt 00:00:02] [%clk 00:15:50]} Nc6 {[%emt 00:00:02] [%clk 00:15:52]} 6. Bb5
{[%emt 00:00:01] [%clk 00:15:59]} Qa5+ {[%emt 00:00:02] [%clk 00:16:00]} 7. Nc3
{[%emt 00:00:06] [%clk 00:16:03]} Qxb5 {[%emt 00:00:02] [%clk 00:16:08]} 8. Nxb5
{[%emt 00:00:02] [%clk 00:16:10]} Nxd4 {[%emt 00:00:02] [%clk 00:16:16]} 9.
Nfxd4 {[%emt 00:00:05] [%clk 00:16:15]} Nxe4 {[%emt 00:00:02] [%clk 00:16:24]}
10. Nc7+ {[%emt 00:00:03] [%clk 00:16:22]} Kd8 {[%emt 00:00:28] [%clk 00:16:07]}
11. Nxa8 {[%emt 00:00:02] [%clk 00:16:29]} Nxg5 {[%emt 00:00:02] [%clk
00:16:15]} 12. Nb5 {[%emt 00:00:08] [%clk 00:16:31]} a6 {[%emt 00:00:02] [%clk
00:16:24]} 13. Nc3 {[%emt 00:00:39] [%clk 00:16:01]} Bf5 {[%emt 00:00:03] [%clk
00:16:31]} 14. O-O-O {[%emt 00:00:34] [%clk 00:15:37]} Ne4 {[%emt 00:00:02]
[%clk 00:16:39]} 15. Nxe4 {[%emt 00:00:43] [%clk 00:15:04]} Bxe4 {[%emt
00:00:02] [%clk 00:16:48]} 16. f3 {[%emt 00:00:01] [%clk 00:15:12]} Bc6 {[%emt
00:00:01] [%clk 00:16:57]} 17. Nb6 {[%emt 00:00:02] [%clk 00:15:19]} e6 {[%emt
00:00:05] [%clk 00:17:03]} 18. Nc4 {[%emt 00:00:17] [%clk 00:15:12]} Kc7 {[%emt
00:00:02] [%clk 00:17:12]} 19. Na5 {[%emt 00:00:14] [%clk 00:15:07]} Bd7 {[%emt
00:03:33]} 20. c4 {[%clk 00:15:05]} h5 {[%emt 00:00:35] [%clk 00:13:36]} 21. Rd3
{[%emt 00:00:36] [%clk 00:14:39]} h4 {[%emt 00:00:50] [%clk 00:12:55]} 22. Rhd1
{[%emt 00:00:06] [%clk 00:14:44]} Be7 {[%emt 00:00:36] [%clk 00:12:29]} 23. Nb3
{[%emt 00:01:24] [%clk 00:13:30]} Rh6 {[%emt 00:00:32] [%clk 00:12:07]} 24. Nc5
{[%emt 00:00:59] [%clk 00:12:41]} Bc6 {[%emt 00:01:47] [%clk 00:10:31]} 25. Ne4
{[%emt 00:00:02] [%clk 00:12:49]} Rg6 {[%emt 00:00:08] [%clk 00:10:33]} 26. g3
{[%emt 00:02:04] [%clk 00:10:55]} hxg3 {[%emt 00:01:00] [%clk 00:09:43]} 27.
hxg3 {[%emt 00:00:07] [%clk 00:10:58]} f5 {[%emt 00:02:51] [%clk 00:07:02]} 28.
Nxd6 {[%emt 00:00:49] [%clk 00:10:18]} Rxg3 {[%emt 00:00:02] [%clk 00:07:10]}
29. c5 {[%emt 00:04:25] [%clk 00:06:04]} Rg2 {[%emt 00:05:31] [%clk 00:01:48]}
30. Re1 {[%emt 00:01:48] [%clk 00:04:26]} Bg5+ {[%emt 00:00:31] [%clk 00:01:27]}
31. Kb1 {[%emt 00:00:02] [%clk 00:04:34]} Bf6 {[%emt 00:00:01] [%clk 00:01:36]}
32. Rb3 {[%emt 00:01:49] [%clk 00:02:56]} Bd5 {[%emt 00:00:42] [%clk 00:01:04]}
33. Ne8+ {[%emt 00:00:52] [%clk 00:02:13]} Kc6 {[%emt 00:00:02] [%clk 00:01:13]}
34. Nxf6 {[%emt 00:00:38] [%clk 00:01:44]} gxf6 {[%emt 00:00:03] [%clk
00:01:20]} 35. Rc3 {[%emt 00:01:08] [%clk 00:00:46]} Rf2 {[%emt 00:00:11] [%clk
00:01:19]} 36. a4 {[%emt 00:00:25] [%clk 00:00:32]} a5 {[%emt 00:00:08] [%clk
00:01:21]} 37. Kc1 {[%emt 00:00:02] [%clk 00:00:40]} f4 {[%emt 00:00:05] [%clk
00:01:25]} 38. Rd1 {[%emt 00:00:22] [%clk 00:00:28]} e5 {[%emt 00:00:40] [%clk
00:00:56]} 39. Rd2 {[%emt 00:00:19] [%clk 00:00:19]} Rf1+ {[%emt 00:00:08] [%clk
00:00:58]} 40. Kc2 {[%emt 00:00:01] [%clk 00:00:28]} f5 {[%emt 00:00:23] [%clk
00:00:45]} 41. Rh2 {[%emt 00:00:09] [%clk 00:00:28]} Bxf3 {[%emt 00:00:27] [%clk
00:00:29]} 42. Rh6+ {[%clk 00:00:37]} Kc7 {[%emt 00:00:15] [%clk 00:00:25]} 43.
Rh7+ {[%emt 00:00:02] [%clk 00:00:45]} Kc6 {[%emt 00:00:01] [%clk 00:00:34]} 44.
Rh6+ {[%clk 00:00:54]} Kc7 {[%emt 00:00:08] [%clk 00:00:37]} 45. Rh7+ {[%emt
00:00:24] [%clk 00:00:40]} Kb8 {[%emt 00:00:02] [%clk 00:00:45]} 46. Rh8+ {[%emt
00:00:19] [%clk 00:00:31]} Ka7 {[%emt 00:00:01] [%clk 00:00:53]} 47. Re8 {[%clk
00:00:40]} Be4+ {[%emt 00:00:40] [%clk 00:00:24]} 48. Kd2 {[%emt 00:00:08] [%clk
00:00:42]} Rf2+ {[%emt 00:00:03] [%clk 00:00:31]} 49. Kc1 {[%emt 00:00:24] [%clk
00:00:28]} f3 {[%emt 00:00:06] [%clk 00:00:35]} 50. c6 {[%emt 00:00:15] [%clk
00:00:23]} bxc6 {[%emt 00:00:11] [%clk 00:00:34]} 51. Rxe5 {[%emt 00:00:17]
[%clk 00:00:16]} Rh2 {[%emt 00:00:12] [%clk 00:00:32]} 52. Rb3 {[%emt 00:00:08]
[%clk 00:00:18]} f2 {[%emt 00:00:06] [%clk 00:00:36]} 53. Rxa5# {[%emt 00:00:02]
[%clk 00:00:27]} 1-0

[Site "Europe Echecs"]

[Event "Championnat d'Europe Rapide"]
[Date "2024.12.08"]
[White "Muradli, Mahammad"]
[Black "Pultinevicius, Paulius"]
[WhiteElo "2588"]
[BlackElo "2579"]
[Round "9.9"]
[Result "1-0"]
[TimeControl "900+10"]

1. Nf3 {[%emt 00:00:01] [%clk 00:15:18]} d5 {[%emt 00:00:05] [%clk 00:15:16]} 2.
c4 {[%emt 00:00:05] [%clk 00:15:23]} e6 {[%emt 00:00:06] [%clk 00:15:20]} 3. g3
{[%emt 00:00:03] [%clk 00:15:30]} Nf6 {[%emt 00:00:07] [%clk 00:15:22]} 4. Bg2
{[%emt 00:00:19] [%clk 00:15:21]} d4 {[%emt 00:00:02] [%clk 00:15:30]} 5. b4
{[%emt 00:00:44] [%clk 00:14:47]} c5 {[%emt 00:03:13] [%clk 00:12:28]} 6. Bb2
{[%emt 00:00:10] [%clk 00:14:47]} cxb4 {[%emt 00:02:10] [%clk 00:10:27]} 7. Nxd4
{[%emt 00:00:28] [%clk 00:14:29]} e5 {[%emt 00:02:42] [%clk 00:07:54]} 8. Nc2
{[%emt 00:00:19] [%clk 00:14:20]} Nc6 {[%emt 00:00:12] [%clk 00:07:53]} 9. a3
{[%emt 00:02:46] [%clk 00:11:44]} bxa3 {[%emt 00:01:17] [%clk 00:06:45]} 10.
Bxa3 {[%emt 00:00:02] [%clk 00:11:52]} Bxa3 {[%emt 00:00:29] [%clk 00:06:26]}
11. Rxa3 {[%emt 00:00:02] [%clk 00:12:01]} Be6 {[%emt 00:00:05] [%clk 00:06:31]}
12. Ne3 {[%emt 00:00:07] [%clk 00:12:04]} O-O {[%emt 00:00:21] [%clk 00:06:20]}
13. O-O {[%emt 00:00:01] [%clk 00:12:13]} Qd6 {[%emt 00:03:09] [%clk 00:03:22]}
14. Ra2 {[%emt 00:01:08] [%clk 00:11:15]} a5 {[%emt 00:03:06] [%clk 00:00:26]}
15. Nc3 {[%emt 00:00:26] [%clk 00:10:58]} Nb4 {[%emt 00:00:03] [%clk 00:00:33]}
16. Ra1 {[%emt 00:00:35] [%clk 00:10:33]} Qd7 {[%emt 00:00:30] [%clk 00:00:13]}
17. d3 {[%emt 00:00:45] [%clk 00:09:59]} Bh3 {[%emt 00:00:10] [%clk 00:00:13]}
18. Qa4 {[%emt 00:00:01] [%clk 00:10:08]} Qc8 {[%emt 00:00:10] [%clk 00:00:12]}
19. Bxh3 {[%emt 00:00:10] [%clk 00:10:08]} Qxh3 {[%clk 00:00:22]} 20. Qb5 {[%emt
00:00:01] [%clk 00:10:17]} Nc2 {[%emt 00:00:16] [%clk 00:00:15]} 21. Ncd5 {[%emt
00:01:04] [%clk 00:09:23]} Nxa1 {[%emt 00:00:13] [%clk 00:00:12]} 22. Nxf6+
{[%emt 00:00:06] [%clk 00:09:28]} gxf6 {[%clk 00:00:21]} 23. Rxa1 {[%emt
00:00:01] [%clk 00:09:36]} Qe6 {[%emt 00:00:19] [%clk 00:00:12]} 24. Rxa5 {[%emt
00:00:35] [%clk 00:09:11]} Rxa5 {[%emt 00:00:02] [%clk 00:00:20]} 25. Qxa5
{[%emt 00:00:01] [%clk 00:09:20]} Qc6 {[%emt 00:00:07] [%clk 00:00:21]} 26. Nd5
{[%emt 00:00:39] [%clk 00:08:53]} Kg7 {[%emt 00:00:11] [%clk 00:00:20]} 27. e4
{[%emt 00:00:12] [%clk 00:08:51]} f5 {[%emt 00:00:18] [%clk 00:00:12]} 28. Ne7
{[%emt 00:00:14] [%clk 00:08:47]} Qe6 {[%emt 00:00:06] [%clk 00:00:16]} 29.
Nxf5+ {[%emt 00:00:03] [%clk 00:08:53]} Kh8 {[%clk 00:00:26]} 30. Qc7 {[%emt
00:00:42] [%clk 00:08:22]} b6 {[%emt 00:00:08] [%clk 00:00:28]} 31. Nd6 {[%emt
00:01:04] [%clk 00:07:28]} Kg8 {[%emt 00:00:26] [%clk 00:00:12]} 32. Kg2 {[%emt
00:00:23] [%clk 00:07:14]} h5 {[%emt 00:00:07] [%clk 00:00:15]} 33. h4 {[%clk
00:07:23]} Kh8 {[%emt 00:00:15] [%clk 00:00:11]} 34. Qxb6 {[%emt 00:00:04] [%clk
00:07:29]} Kg8 {[%emt 00:00:10] [%clk 00:00:11]} 35. c5 {[%emt 00:00:28] [%clk
00:07:11]} Ra8 {[%emt 00:00:08] [%clk 00:00:13]} 36. Qb1 {[%emt 00:00:30] [%clk
00:06:51]} Ra2 {[%emt 00:00:10] [%clk 00:00:13]} 37. Qd1 {[%emt 00:00:34] [%clk
00:06:27]} Qf6 {[%emt 00:00:12] [%clk 00:00:11]} 38. Nf5 {[%emt 00:00:04] [%clk
00:06:33]} Ra5 {[%emt 00:00:11] [%clk 00:00:11]} 39. Qc1 {[%emt 00:00:14] [%clk
00:06:28]} Ra7 {[%emt 00:00:07] [%clk 00:00:14]} 40. Qb2 {[%emt 00:00:38] [%clk
00:06:00]} Kh7 {[%emt 00:00:02] [%clk 00:00:22]} 41. Ne3 {[%emt 00:00:54] [%clk
00:05:16]} Ra5 {[%emt 00:00:21] [%clk 00:00:11]} 42. Nd5 {[%emt 00:00:18] [%clk
00:05:08]} Qe6 {[%clk 00:00:21]} 43. Qc3 {[%emt 00:00:40] [%clk 00:04:37]} Ra2
{[%emt 00:00:20] [%clk 00:00:11]} 44. c6 {[%emt 00:00:01] [%clk 00:04:46]} Qd6
{[%emt 00:00:11] [%clk 00:00:11]} 1-0

[Site "Europe Echecs"]